fUST/lending_fUST_20241010
["ID","MTS","AMOUNT","RATE_DAILY","PERIOD"]
[340091396,1728508238321,-162.018254,0.00034045,2]
[340091398,1728508238332,-159.535284,0.00034121,2]
[340091400,1728508238342,-560.0,0.00034125,2]
[340091402,1728508238350,-162.018254,0.00034162,2]
[340091404,1728508238360,-153.3760548,0.00034247,2]
[340091406,1728508238370,-162.018254,0.00034279,2]
[340091407,1728508238379,-174.260103,0.00034321,2]
[340091410,1728508238389,-162.018254,0.00034396,2]
[340091411,1728508238398,-174.260103,0.00034492,2]
[340091413,1728508238407,-162.018254,0.00034513,2]
[340091415,1728508238416,-2539.1366157,0.00034563,2]
[340091417,1728508238426,-162.018254,0.0003463,2]
[340091419,1728508238436,-291.6809518,0.00034658,2]
[340091421,1728508238445,-162.018254,0.00034747,2]
[340091423,1728508238454,-162.018254,0.00034864,2]
[340091425,1728508238464,-151.0,0.00034981,14]
[340091427,1728508238473,-176.292184,0.00034981,14]
[340091430,1728508238483,-151.0,0.00034981,14]
[340091432,1728508238492,-162.018254,0.00034981,2]
[340091434,1728508238502,-302.8788636,0.00035,2]
[340091436,1728508238511,-500.0,0.00035,10]
[340091438,1728508238521,-162.018254,0.00035098,2]
[340091440,1728508238530,-151.0,0.00035187,14]
[340091442,1728508238539,-237.368792,0.00035187,14]
[340091443,1728508238548,-237.368792,0.00035187,14]
[340091446,1728508238558,-151.0,0.00035187,14]
[340091448,1728508238567,-162.018254,0.00035215,2]
[340091449,1728508238576,-500.0,0.0003526,5]
[340091451,1728508238585,-162.018254,0.00035332,2]
[340091454,1728508238595,-500.0,0.0003534,2]
[340091456,1728508238604,-302.8788636,0.0003535,2]
[340091458,1728508238613,-2539.1366157,0.00035414,2]
[340091460,1728508238624,-162.018254,0.00035449,2]
[340091462,1728508238633,-1494.1867378,0.0003553,2]
[340091464,1728508238643,-151.0,0.0003553,14]
[340091466,1728508238652,-151.0,0.0003553,14]
[340091468,1728508238662,-151.0,0.0003553,14]
[340091470,1728508238671,-151.0,0.0003553,14]
[340091472,1728508238680,-151.0,0.0003553,14]
[340091474,1728508238689,-237.368792,0.0003553,14]
[340091476,1728508238698,-237.368792,0.0003553,14]
[340091478,1728508238707,-151.0,0.0003553,14]
[340091480,1728508238716,-151.0,0.0003553,14]
[340091481,1728508238726,-151.0,0.0003553,14]
[340091483,1728508238736,-151.0,0.00035616,14]
[340091486,1728508238746,-153.0,0.00035616,2]
[340091488,1728508238755,-302.8788636,0.000357,2]
[340091490,1728508238765,-500.0,0.00035771,5]
[340091492,1728508238774,-407.0,0.0003589,2]
[340091494,1728508238784,-437.0,0.0003596,2]
[340091496,1728508238794,-500.0,0.0003599,5]
[340091498,1728508238803,-407.0,0.00036,2]
[340091500,1728508238812,-1494.1867378,0.0003603,2]
[340091502,1728508238821,-970.0,0.0003603,30]
[340091504,1728508238831,-970.0,0.0003603,30]
[340091506,1728508238841,-970.0,0.0003603,30]
[340091508,1728508238850,-970.0,0.0003603,30]
[340091510,1728508238860,-970.0,0.0003603,30]
[340091512,1728508238870,-476.867476,0.0003603,30]
[340091514,1728508238879,-151.0,0.0003603,14]
[340091516,1728508238889,-151.0,0.0003603,14]
[340091518,1728508238897,-151.0,0.0003603,14]
[340091520,1728508238906,-151.0,0.0003603,14]
[340091522,1728508238915,-237.368792,0.0003603,14]
[340091524,1728508238925,-237.368792,0.0003603,14]
[340091526,1728508238934,-151.0,0.0003603,14]
[340091528,1728508238943,-151.0,0.0003603,14]
[340091530,1728508238952,-151.0,0.0003603,14]
[340091532,1728508238961,-150.0,0.00036036,2]
[340091534,1728508238971,-1219.0,0.00036036,2]
[340091536,1728508238981,-151.0,0.00036036,14]
[340091538,1728508238994,-302.8788636,0.0003605,2]
[340091540,1728508239003,-196.211188,0.00036095,14]
[340091542,1728508239012,-407.0,0.00036164,2]
[340091544,1728508239021,-151.0,0.00036265,14]
[340091545,1728508239030,-237.368792,0.00036265,14]
[340091547,1728508239040,-237.368792,0.00036265,14]
[340091549,1728508239049,-151.0,0.00036265,14]
[340091551,1728508239058,-2539.1366157,0.00036266,2]
[340091553,1728508239068,-151.0,0.00036329,14]
[340091555,1728508239077,-151.0,0.00036329,14]
[340091557,1728508239087,-151.0,0.00036329,14]
[340091559,1728508239096,-151.0,0.00036329,14]
[340091562,1728508239106,-302.8788636,0.000364,2]
[340091564,1728508239116,-407.0,0.00036438,2]
[340091566,1728508239126,-1494.1867378,0.0003653,2]
[340091568,1728508239137,-151.0,0.00036575,14]
[340091570,1728508239147,-151.0,0.00036575,14]
[340091572,1728508239157,-151.0,0.00036575,14]
[340091574,1728508239167,-151.0,0.00036575,14]
[340091576,1728508239176,-151.0,0.00036575,14]
[340091578,1728508239185,-168.2260285,0.00036575,2]
[340091580,1728508239195,-153.0,0.00036575,2]
[340091582,1728508239204,-347.7565949,0.00036575,2]
[340091584,1728508239213,-1000.0,0.0003663,5]
[340091586,1728508239223,-500.0,0.00036673,5]
[340091588,1728508239236,-180.78,0.00036685,10]
[340091590,1728508239245,-150.65,0.00036685,10]
[340091592,1728508239256,-151.0,0.00036695,14]
[340091594,1728508239265,-237.368792,0.00036695,14]
[340091596,1728508239274,-237.368792,0.00036695,14]
[340091598,1728508239285,-190.709992,0.00036695,14]
[340091601,1728508239299,-1000.0,0.00036695,28]
[340091603,1728508239308,-1000.0,0.00036695,28]
[340091605,1728508239317,-1000.0,0.00036695,28]
[340091607,1728508239327,-1000.0,0.00036695,28]
[340091609,1728508239338,-1000.0,0.00036695,28]
[340091611,1728508239347,-1000.0,0.00036695,28]
[340091613,1728508239357,-1000.0,0.00036695,28]
[340091615,1728508239369,-1000.0,0.00036695,28]
[340091618,1728508239379,-1000.0,0.00036695,28]
[340091620,1728508239389,-1000.0,0.00036695,28]
[340091622,1728508239399,-1000.0,0.00036695,28]
[340091624,1728508239409,-1000.0,0.00036695,28]
[340091626,1728508239421,-1000.0,0.00036695,28]
[340091628,1728508239432,-1000.0,0.00036695,28]
[340091629,1728508239443,-1000.0,0.00036695,28]
[340091630,1728508239452,-1000.0,0.00036695,28]
[340091631,1728508239462,-1000.0,0.00036695,28]
[340091632,1728508239471,-1000.0,0.00036695,28]
[340091633,1728508239486,-1000.0,0.00036695,28]
[340091634,1728508239495,-1000.0,0.00036695,28]
[340091635,1728508239505,-1000.0,0.00036695,28]
[340091636,1728508239514,-1000.0,0.00036695,28]
[340091637,1728508239524,-1000.0,0.00036695,28]
[340091646,1728508239606,-1000.0,0.00036695,28]
[340091648,1728508239616,-1000.0,0.00036695,28]
[340091650,1728508239625,-1000.0,0.00036695,28]
[340091652,1728508239635,-1000.0,0.00036695,28]
[340091654,1728508239646,-1000.0,0.00036695,28]
[340091656,1728508239655,-1000.0,0.00036695,28]
[340091658,1728508239664,-1000.0,0.00036695,28]
[340091660,1728508239674,-1000.0,0.00036695,28]
[340091662,1728508239683,-1000.0,0.00036695,28]
[340091664,1728508239693,-1000.0,0.00036695,28]
[340091666,1728508239702,-1000.0,0.00036695,28]
[340091668,1728508239712,-1000.0,0.00036695,28]
[340091670,1728508239721,-1000.0,0.00036695,28]
[340091672,1728508239731,-1000.0,0.00036695,28]
[340091674,1728508239744,-1000.0,0.00036695,28]
[340091676,1728508239753,-1000.0,0.00036695,28]
[340091679,1728508239762,-1000.0,0.00036695,28]
[340091681,1728508239772,-1000.0,0.00036695,28]
[340091683,1728508239781,-1000.0,0.00036695,28]
[340091685,1728508239791,-1000.0,0.00036695,28]
[340091687,1728508239800,-1000.0,0.00036695,28]
[340091689,1728508239809,-1000.0,0.00036695,28]
[340091691,1728508239818,-1000.0,0.00036695,28]
[340091693,1728508239827,-1000.0,0.00036695,28]
[340091695,1728508239837,-1000.0,0.00036695,28]
[340091697,1728508239846,-1000.0,0.00036695,28]
[340091699,1728508239855,-1000.0,0.00036695,28]
[340091701,1728508239864,-1000.0,0.00036695,28]
[340091703,1728508239874,-1000.0,0.00036695,28]
[340091705,1728508239883,-1000.0,0.00036695,28]
[340091707,1728508239892,-1000.0,0.00036695,28]
[340091709,1728508239901,-1000.0,0.00036695,28]
[340091711,1728508239911,-1000.0,0.00036695,28]
[340091713,1728508239920,-1000.0,0.00036695,28]
[340091715,1728508239929,-1000.0,0.00036695,28]
[340091716,1728508239938,-1000.0,0.00036695,28]
[340091719,1728508239948,-1000.0,0.00036695,28]
[340091721,1728508239958,-1000.0,0.00036695,28]
[340091723,1728508239967,-1000.0,0.00036695,28]
[340091725,1728508239977,-1000.0,0.00036695,28]
[340091727,1728508239992,-1000.0,0.00036695,28]
[340091729,1728508240001,-1000.0,0.00036695,28]
[340091731,1728508240010,-1000.0,0.00036695,28]
[340091733,1728508240020,-1000.0,0.00036695,28]
[340091735,1728508240029,-1000.0,0.00036695,28]
[340091737,1728508240038,-1000.0,0.00036695,28]
[340091739,1728508240048,-1000.0,0.00036695,28]
[340091741,1728508240058,-1000.0,0.00036695,28]
[340091743,1728508240068,-1000.0,0.00036695,28]
[340091745,1728508240077,-1000.0,0.00036695,28]
[340091747,1728508240088,-1000.0,0.00036695,28]
[340091749,1728508240099,-1000.0,0.00036695,28]
[340091751,1728508240108,-1000.0,0.00036695,28]
[340091753,1728508240118,-1000.0,0.00036695,28]
[340091755,1728508240127,-1000.0,0.00036695,28]
[340091757,1728508240137,-1000.0,0.00036695,28]
[340091759,1728508240148,-1000.0,0.00036695,28]
[340091761,1728508240158,-1000.0,0.00036695,28]
[340091763,1728508240167,-1000.0,0.00036695,28]
[340091765,1728508240176,-1000.0,0.00036695,28]
[340091767,1728508240185,-727.40452574,0.00036695,28]
[340091769,1728508240195,-407.0,0.00036712,2]
[340091771,1728508240204,-153.0,0.00036712,2]
[340091773,1728508240214,-308.3117526,0.00036712,2]
[340091775,1728508240223,-153.0,0.00036712,2]
[340091777,1728508240235,-153.0,0.00036712,2]
[340091779,1728508240244,-153.0,0.00036712,2]
[340091782,1728508240254,-153.0,0.00036712,2]
[340091784,1728508240263,-153.0,0.00036712,2]
[340091786,1728508240273,-153.0,0.00036712,2]
[340091788,1728508240283,-153.0,0.00036712,2]
[340091790,1728508240295,-153.0,0.00036712,2]
[340091792,1728508240305,-234.564213,0.00036712,2]
[340091794,1728508240314,-153.0,0.00036712,2]
[340091796,1728508240324,-153.0,0.00036712,2]
[340091798,1728508240334,-165.89957492,0.0003675,4]
[340091800,1728508240343,-227.633584,0.00036886,14]
[340091802,1728508240352,-151.0,0.00036886,14]
[340091804,1728508240361,-151.0,0.00036886,14]
[340091806,1728508240373,-150.0,0.00037,2]
[340091808,1728508240383,-245.0,0.00037024,2]
[340091810,1728508240392,-245.0,0.00037024,2]
[340091812,1728508240402,-245.0,0.00037024,2]
[340091814,1728508240411,-1494.1867378,0.0003703,2]
[340091817,1728508240422,-151.0,0.0003703,14]
[340091819,1728508240430,-542.0,0.000371,2]
[340091821,1728508240440,-2539.1366157,0.00037117,2]
[340091823,1728508240449,-151.0,0.00037117,14]
[340091825,1728508240459,-237.368792,0.00037117,14]
[340091827,1728508240469,-237.368792,0.00037117,14]
[340091829,1728508240478,-151.0,0.00037136,14]
[340091831,1728508240489,-151.0,0.00037141,14]
[340091833,1728508240498,-1000.0,0.00037141,5]
[340091835,1728508240508,-3439.13104853,0.00037178,5]
[340091837,1728508240517,-40243.6088348,0.00037178,5]
[340091839,1728508240527,-151.0,0.00037178,14]
[340091841,1728508240536,-151.0,0.00037191,14]
[340091843,1728508240545,-3439.13104853,0.00037198,5]
[340091845,1728508240555,-40243.6088348,0.00037198,5]
[340091847,1728508240564,-151.0,0.00037198,14]
[340091849,1728508240574,-151.0,0.00037198,14]
[340091852,1728508240584,-187.65126,0.00037198,14]
[340091854,1728508240593,-151.0,0.00037198,14]
[340091856,1728508240602,-237.368792,0.00037198,14]
[340091858,1728508240611,-237.368792,0.00037198,14]
[340091860,1728508240620,-151.0,0.00037198,14]
[340091862,1728508240630,-1000.0,0.00037198,2]
[340091864,1728508240639,-435.72643033,0.00037206,15]
[340091866,1728508240648,-500.0,0.00037206,15]
[340091868,1728508240657,-417.57540297,0.00037206,15]
[340091870,1728508240666,-500.0,0.00037206,15]
[340091872,1728508240676,-1243.03558872,0.00037206,15]
[340091874,1728508240685,-1243.03558872,0.00037206,15]
[340091876,1728508240694,-1243.03558872,0.00037206,15]
[340091878,1728508240703,-500.0,0.00037206,15]
[340091880,1728508240713,-1243.03558872,0.00037206,15]
[340091882,1728508240722,-566.67461915,0.00037206,15]
[340091884,1728508240731,-1243.03558872,0.00037206,15]
[340091886,1728508240742,-1243.03558872,0.00037206,15]
[340091888,1728508240751,-500.0,0.00037206,15]
[340091890,1728508240759,-1243.03558872,0.00037206,15]
[340091892,1728508240767,-500.0,0.00037206,15]
[340091894,1728508240778,-1243.03558872,0.00037206,15]
[340091896,1728508240788,-1243.03558872,0.00037206,15]
[340091898,1728508240797,-500.0,0.00037206,15]
[340091900,1728508240806,-332.98701746,0.00037206,15]
[340091902,1728508240815,-1243.03558872,0.00037206,15]
[340091904,1728508240824,-1243.03558872,0.00037206,15]
[340091906,1728508240833,-1243.03558872,0.00037206,15]
[340091907,1728508240842,-1243.03558872,0.00037206,15]
[340091910,1728508240852,-1243.03558872,0.00037206,15]
[340091912,1728508240861,-1243.03558872,0.00037206,15]
[340091914,1728508240870,-1243.03558872,0.00037206,15]
[340091916,1728508240880,-1243.03558872,0.00037206,15]
[340091918,1728508240889,-1243.03558872,0.00037206,15]
[340091920,1728508240899,-1243.03558872,0.00037206,15]
[340091922,1728508240908,-1243.03558872,0.00037206,15]
[340091924,1728508240917,-3439.13104853,0.00037207,5]
[340091926,1728508240927,-40243.6088348,0.00037207,5]
[340091928,1728508240936,-1000.0,0.00037207,2]
[340091930,1728508240945,-1000.0,0.00037207,2]
[340091932,1728508240954,-1000.0,0.00037207,2]
[340091934,1728508240963,-1000.0,0.00037207,2]
[340091936,1728508240971,-1000.0,0.00037207,2]
[340091938,1728508240981,-644.47837438,0.00037207,2]
[340091940,1728508240993,-151.0,0.00037207,14]
[340091942,1728508241001,-151.0,0.00037208,14]
[340091944,1728508241010,-151.0,0.00037208,14]
[340091945,1728508241019,-151.0,0.00037208,14]
[340091948,1728508241031,-151.0,0.00037208,14]
[340091950,1728508241043,-151.0,0.00037208,14]
[340091952,1728508241053,-237.368792,0.00037208,14]
[340091954,1728508241064,-237.368792,0.00037208,14]
[340091956,1728508241074,-237.368792,0.00037208,14]
[340091958,1728508241084,-237.368792,0.00037208,14]
[340091961,1728508241094,-237.368792,0.00037208,14]
[340091963,1728508241104,-237.368789,0.00037208,14]
[340091965,1728508241115,-6878.26209706,0.00037208,5]
[340091967,1728508241125,-80487.2176696,0.00037208,5]
[340091969,1728508241134,-160.0,0.00037217,10]
[340091971,1728508241143,-1152.26107524,0.00037273,2]
[340091973,1728508241151,-1000.0,0.00037287,7]
[340091975,1728508241160,-3439.13104853,0.00037298,5]
[340091977,1728508241170,-40243.6088348,0.00037298,5]
[340091979,1728508241179,-150.0,0.000373,2]
[340091981,1728508241188,-150.112233,0.000373,5]
[340091983,1728508241197,-150.112233,0.000373,10]
[340091985,1728508241207,-150.112233,0.000373,10]
[340091987,1728508241216,-150.112233,0.000373,6]
[340091988,1728508241225,-150.112233,0.000373,6]
[340091990,1728508241237,-24073.9173397,0.00037308,5]
[340091992,1728508241246,-40243.6088348,0.00037308,5]
[340091994,1728508241255,-150.01,0.00037317,2]
[340091996,1728508241265,-1710.37180609,0.00037317,2]
[340091998,1728508241275,-131781.56379738,0.00037318,2]
[340092000,1728508241284,-223645.50897946,0.00037318,2]
[340092017,1728508241436,-7116.96088689,0.00037318,2]
[340092019,1728508241444,-500.0,0.00037373,5]
[340092021,1728508241454,-500.0,0.00037373,5]
[340092023,1728508241465,-407.0,0.00037397,2]
[340092025,1728508241474,-150.112233,0.000374,10]
[340092027,1728508241488,-509.0,0.000374,2]
[340092029,1728508241497,-10317.3931456,0.00037409,5]
[340092031,1728508241506,-500.0,0.00037419,14]
[340092033,1728508241516,-500.0,0.00037419,14]
[340092035,1728508241525,-97999.53373551,0.00037419,2]
[340092037,1728508241537,-27819.83465536,0.00037419,2]
[340092039,1728508241546,-4243.06191806,0.00037465,7]
[340092042,1728508241556,-150.112233,0.000375,9]
[340092044,1728508241566,-3439.13104853,0.00037524,5]
[340092046,1728508241576,-1494.1867378,0.0003753,2]
[340092048,1728508241587,-306.0,0.00037534,2]
[340092050,1728508241600,-153.0,0.00037534,2]
[340092053,1728508241610,-319.8570125,0.00037534,2]
[340092055,1728508241620,-153.0,0.00037534,2]
[340092057,1728508241630,-209.799474,0.00037534,2]
[340092059,1728508241641,-209.799474,0.00037534,2]
[340092061,1728508241651,-418.6314038,0.00037534,2]
[340092063,1728508241662,-209.799474,0.00037534,2]
[340092065,1728508241672,-209.799474,0.00037534,2]
[340092068,1728508241683,-209.799474,0.00037534,2]
[340092070,1728508241694,-209.799474,0.00037534,2]
[340092072,1728508241706,-209.799474,0.00037534,2]
[340092074,1728508241717,-209.799474,0.00037534,2]
[340092076,1728508241727,-347.0,0.00037538,2]
[340092078,1728508241740,-721.6013499,0.00037595,120]
[340092081,1728508241751,-150.112233,0.000376,10]
[340092083,1728508241762,-150.112233,0.000376,5]
[340092085,1728508241772,-150.112233,0.000376,7]
[340092087,1728508241784,-10317.3931456,0.00037685,5]
[340092089,1728508241795,-240712.62890556,0.00037695,120]
[340092091,1728508241805,-150.112233,0.000377,9]
[340092093,1728508241814,-151.0,0.000378,2]
[340092096,1728508241825,-294.0,0.000378,120]
[340092097,1728508241835,-437.0,0.000378,30]
[340092099,1728508241845,-150.112233,0.000378,10]
[340092101,1728508241854,-210603.95999109,0.00037807,2]
[340092103,1728508241863,-1000.0,0.00038,2]
[340092106,1728508241874,-1000.0,0.00038,120]
[340092107,1728508241882,-300.39246,0.00038,19]
[340092109,1728508241891,-150.0,0.00038,2]
[340092111,1728508241901,-1000.0,0.00038042,5]
[340092114,1728508241910,-303.14624183,0.00038096,4]
[340092116,1728508241919,-151.0,0.00038173,7]
[340092117,1728508241929,-18021.0,0.000382,14]
[340092119,1728508241938,-1500.0,0.000382,2]
[340092121,1728508241947,-1500.0,0.000382,2]
[340092123,1728508241956,-1500.0,0.000382,2]
[340092124,1728508241966,-1500.0,0.000382,2]
[340092125,1728508241975,-1500.0,0.000382,2]
[340092126,1728508241986,-1513.67,0.000382,2]
[340092127,1728508241996,-198.75,0.000382,14]
[340092128,1728508242005,-3000.0,0.00038356,90]
[340092129,1728508242014,-3000.0,0.00038356,90]
[340092130,1728508242024,-3000.0,0.00038356,90]
[340092131,1728508242033,-3000.0,0.00038356,90]
[340092132,1728508242042,-3000.0,0.00038356,90]
[340092133,1728508242051,-3000.0,0.00038356,90]
[340092134,1728508242060,-3000.0,0.00038356,90]
[340092136,1728508242070,-3051.179778,0.00038356,90]
[340092138,1728508242079,-308.3162392,0.00038356,2]
[340092140,1728508242088,-209.3051165,0.00038356,2]
[340092142,1728508242097,-500.0,0.000384,2]
[340092144,1728508242106,-44282.88480632,0.0003847,35]
[340092147,1728508242126,-1404.57538128,0.0003847,35]
[340092149,1728508242137,-473.21000055,0.0003847,35]
[340092235,1728508242815,-5000.02297199,0.00033236,2]
[340092244,1728508242871,-1174.61692453,0.00033236,2]
[340092247,1728508242889,-1731.19781452,0.00033236,2]
[340092249,1728508242906,-501.55,0.00033236,2]
[340092589,1728508246017,-2352.99999998,0.00033236,2]
[340093006,1728508250157,3610.15393157,0.00022,2]
[340095520,1728508439058,310.04905273,0.00021022,2]
[340095530,1728508987806,500.0,0.00021022,2]
[340095531,1728509054254,500.0,0.00021022,2]
[340095532,1728509089413,150.0,0.00021022,2]
[340095533,1728509105763,703.84,0.00021022,2]
[340095543,1728509330755,-154.0,0.000242,120]
[340095544,1728509330779,-400.0,0.00034585,2]
[340095545,1728509330803,-200.0,0.00034585,2]
[340095546,1728509330827,-245.0,0.00034586,2]
[340095547,1728509330851,-24900.0,0.00034586,2]
[340095548,1728509330873,-302.90913937,0.00035,2]
[340095549,1728509330896,-302.8788636,0.00035,2]
[340095550,1728509330919,-10439.18820184,0.00035,2]
[340095551,1728509330940,-302.90913937,0.0003535,2]
[340095552,1728509330962,-302.8788636,0.0003535,2]
[340095553,1728509330984,-200.0,0.00035529,30]
[340095554,1728509331005,-302.90913937,0.000357,2]
[340095555,1728509331027,-302.8788636,0.000357,2]
[340095556,1728509331049,-16060.27659023,0.00035988,2]
[340095573,1728509432072,-302.90913937,0.0003605,2]
[340095574,1728509432083,-6.46595087,0.0003605,2]
[340095583,1728509438261,-296.41291273,0.0003605,2]
[340095584,1728509438271,-905.897,0.00036076,2]
[340095585,1728509438281,-259.35797123,0.0003624,2]
[340095586,1728509438290,-500.0,0.00036385,2]
[340095587,1728509438301,-302.8788636,0.000364,2]
[340095588,1728509438311,-400.0,0.00036749,2]
[340095589,1728509438322,-454.3182954,0.0003675,4]
[340095590,1728509438333,-600.0,0.00036864,2]
[340095591,1728509438344,-500.0,0.00036885,2]
[340095592,1728509438354,-218.0,0.00037007,2]
[340095593,1728509438364,-7679.72295704,0.00037007,2]
[340095594,1728509438653,-4898.14119595,0.00037007,2]
[340095595,1728509438669,-300.36695431,0.000371,4]
[340095596,1728509438680,-500.59959896,0.00037148,2]
[340095597,1728509438691,-1621.45,0.00037162,10]
[340095598,1728509438703,-3091.99,0.00037162,10]
[340095599,1728509438714,-361.50178593,0.00037171,15]
[340095600,1728509438723,-500.0,0.00037171,15]
[340095601,1728509438735,-187.43227678,0.00037171,15]
[340095602,1728509438744,-500.0,0.00037171,15]
[340095603,1728509438754,-639.19218527,0.00037171,15]
[340095604,1728509438766,-500.0,0.00037171,15]
[340095605,1728509438776,-500.0,0.00037171,15]
[340095606,1728509438787,-500.0,0.00037171,15]
[340095607,1728509438799,-500.0,0.00037171,15]
[340095608,1728509438808,-500.0,0.00037171,15]
[340095609,1728509438818,-335.44663798,0.00037171,15]
[340095610,1728509438828,-623.55479543,0.00037171,15]
[340095611,1728509438841,-189.29413335,0.00037172,14]
[340095612,1728509438851,-30091.73604966,0.00037172,4]
[340095619,1728509440067,-3317.13404886,0.00037172,4]
[340095620,1728509440081,-123713.6601818,0.00037172,4]
[340095630,1728509443122,-3195.55715088,0.00037172,4]
[340095631,1728509443134,-581.6356139,0.00037172,4]
[340095632,1728509443146,-6283.15107741,0.00037172,4]
[340095637,1728509446034,-104.05509412,0.00037172,4]
[340095638,1728509446049,-7220.78801901,0.00037172,4]
[340095639,1728509446296,-1525.24628039,0.00037172,4]
[340095672,1728510632128,-986.6371377,0.0003,2]
[340095673,1728510632138,-82.1966143,0.00033896,2]
[340095674,1728510632186,-100.8033857,0.00033896,2]
[340095676,1728510632196,-2585.32392977,0.00033897,2]
[340095685,1728510638300,-164.61165,0.00033665,2]
[340095686,1728510638310,-284.84970705,0.00033897,2]
[340095687,1728510638415,-6.15029295,0.00033897,2]
[340095688,1728510638425,-22314.67607023,0.00033897,2]
[340095689,1728510638435,-164.61165,0.0003425,2]
[340095690,1728510638446,-164.61165,0.00034835,2]
[340095691,1728510638456,-2643.0637175,0.00035053,2]
[340095692,1728510638466,-244.45746213,0.00035286,5]
[340095693,1728510638475,-186.458356,0.00035384,2]
[340095694,1728510638484,-164.61165,0.0003542,2]
[340095695,1728510638495,-500.0,0.00035486,5]
[340095696,1728510638504,-189.29413335,0.00035486,14]
[340095697,1728510638514,-500.38374245,0.00035573,5]
[340095698,1728510638523,-500.0,0.000356,5]
[340095699,1728510638532,-150.0,0.0003601,2]
[340095700,1728510638542,-525.0,0.0003601,2]
[340095701,1728510638551,-1218.0,0.0003601,2]
[340095702,1728510638565,-400.47967916,0.00036285,2]
[340095703,1728510638573,-3452.49380532,0.00036364,2]
[340095709,1728510643204,-5018.9254973,0.00036217,2]
[340095735,1728511832610,-240.8021032,0.00032115,2]
[340095736,1728511832621,-159.30885,0.00032428,2]
[340095737,1728511832633,-2232.77792506,0.00033271,2]
[340095738,1728511832646,-50.91725144,0.00033271,2]
[340095739,1728511832656,-159.30885,0.00033273,2]
[340095740,1728511832665,-159.30885,0.00034118,2]
[340095741,1728511832675,-181.75338535,0.00034593,2]
[340095742,1728511832691,-300.0,0.00034693,2]
[340095743,1728511832702,-400.0,0.00034693,2]
[340095744,1728511832712,-242.0,0.00034694,2]
[340095745,1728511832722,-24900.0,0.00034694,2]
[340095746,1728511832732,-150.0,0.00035539,2]
[340095747,1728511832741,-189.29413335,0.0003555,14]
[340095748,1728511832751,-5236.89124042,0.00035586,2]
[340095749,1728511832761,-150.39677943,0.00035728,2]
[340095750,1728511832770,-500.0,0.0003575,5]
[340095751,1728511832780,-243.75048427,0.0003585,5]
[340095752,1728511832790,-5236.89124042,0.00035866,2]
[340095753,1728511832801,-209.799474,0.0003589,2]
[340095754,1728511832811,-209.799474,0.0003589,2]
[340095755,1728511832821,-209.799474,0.0003589,2]
[340095756,1728511832831,-320.38374332,0.00035998,2]
[340095757,1728511832840,-6950.13983316,0.00036058,25]
[340095789,1728512765567,-162.421906,0.00024341,2]
[340095811,1728513032521,-190.8718426,0.00024201,2]
[340095812,1728513032533,-500.0,0.000243,2]
[340095813,1728513032546,-113.1438942,0.00024341,2]
[340095814,1728513032557,-210.65472962,0.00024369,2]
[340095815,1728513032570,-41.86966088,0.00024369,2]
[340095816,1728513032580,-162.421906,0.00024787,2]
[340095817,1728513032592,-162.421906,0.00024887,2]
[340095818,1728513032602,-158.15082827,0.00024985,2]
[340095819,1728513032612,-162.421906,0.00024986,2]
[340095820,1728513032623,-536.10873111,0.00025009,30]
[340095821,1728513032634,-675.89262075,0.00025009,30]
[340095823,1728513032644,-677.61729944,0.00025009,30]
[340095824,1728513032653,-162.421906,0.00025086,2]
[340095826,1728513032663,-162.421906,0.00025185,2]
[340095827,1728513032672,-162.421906,0.00025284,2]
[340095828,1728513032682,-162.421906,0.00025384,2]